{"text_format":"3","workbook":"xlsx","n_sheets":2,"sheets":["BÜYÜME VERİLERİ","BÜYÜME GRAFİĞİ"],"not_rendered":{"charts":1,"defined_names":3},"read":"whole","date_system":"1900"}

{"sheet":"BÜYÜME VERİLERİ","index":0,"n_rows":23,"n_cols":8,"rows_kept":23,"merged":[[0,1,0,7],[1,2,1,7]]}
[null,"Bebek Büyümesi "]
[null,"Bebek Adı:","Ad"]
[null,"Yaş","Kilo","Gram","Ağırlık (kilo)","Ağırlık\nYüzdelik Dilim","Uzunluk (cm)","Uzunluk\nYüzdelik Dilim"]
[null,"Doğum",7,null,{"$f":"IF(COUNT(Veri[[#This Row],[Kilo]:[Gram]])>0,Veri[[#This Row],[Kilo]]+(Veri[[#This Row],[Gram]]/16),NA())","v":7},40,19.5,70]
[null,"4 gün",6,8,{"$f":"IF(COUNT(Veri[[#This Row],[Kilo]:[Gram]])>0,Veri[[#This Row],[Kilo]]+(Veri[[#This Row],[Gram]]/16),NA())","v":6.5},41,19.5,70]
[null,"7 gün",6,4.8,{"$f":"IF(COUNT(Veri[[#This Row],[Kilo]:[Gram]])>0,Veri[[#This Row],[Kilo]]+(Veri[[#This Row],[Gram]]/16),NA())","v":6.3},42,20,71]
[null,"11 gün",6,9.6,{"$f":"IF(COUNT(Veri[[#This Row],[Kilo]:[Gram]])>0,Veri[[#This Row],[Kilo]]+(Veri[[#This Row],[Gram]]/16),NA())","v":6.6},43,20,71]
[null,"14 gün",7,null,{"$f":"IF(COUNT(Veri[[#This Row],[Kilo]:[Gram]])>0,Veri[[#This Row],[Kilo]]+(Veri[[#This Row],[Gram]]/16),NA())","v":7},44,20,71]
[null,"18 gün",7,12,{"$f":"IF(COUNT(Veri[[#This Row],[Kilo]:[Gram]])>0,Veri[[#This Row],[Kilo]]+(Veri[[#This Row],[Gram]]/16),NA())","v":7.75},45,21,72]
[null,"21 gün",8,8,{"$f":"IF(COUNT(Veri[[#This Row],[Kilo]:[Gram]])>0,Veri[[#This Row],[Kilo]]+(Veri[[#This Row],[Gram]]/16),NA())","v":8.5},46,21,72]
[null,"25 gün",null,null,{"$f":"IF(COUNT(Veri[[#This Row],[Kilo]:[Gram]])>0,Veri[[#This Row],[Kilo]]+(Veri[[#This Row],[Gram]]/16),NA())","v":{"$error":"#N/A"}}]
[null,"28 gün",null,null,{"$f":"IF(COUNT(Veri[[#This Row],[Kilo]:[Gram]])>0,Veri[[#This Row],[Kilo]]+(Veri[[#This Row],[Gram]]/16),NA())","v":{"$error":"#N/A"}}]
[null,"5 hafta",null,null,{"$f":"IF(COUNT(Veri[[#This Row],[Kilo]:[Gram]])>0,Veri[[#This Row],[Kilo]]+(Veri[[#This Row],[Gram]]/16),NA())","v":{"$error":"#N/A"}}]
[null,"6 hafta",null,null,{"$f":"IF(COUNT(Veri[[#This Row],[Kilo]:[Gram]])>0,Veri[[#This Row],[Kilo]]+(Veri[[#This Row],[Gram]]/16),NA())","v":{"$error":"#N/A"}}]
[null,"7 hafta",null,null,{"$f":"IF(COUNT(Veri[[#This Row],[Kilo]:[Gram]])>0,Veri[[#This Row],[Kilo]]+(Veri[[#This Row],[Gram]]/16),NA())","v":{"$error":"#N/A"}}]
[null,"2 ay",null,null,{"$f":"IF(COUNT(Veri[[#This Row],[Kilo]:[Gram]])>0,Veri[[#This Row],[Kilo]]+(Veri[[#This Row],[Gram]]/16),NA())","v":{"$error":"#N/A"}}]
[null,"3 ay",null,null,{"$f":"IF(COUNT(Veri[[#This Row],[Kilo]:[Gram]])>0,Veri[[#This Row],[Kilo]]+(Veri[[#This Row],[Gram]]/16),NA())","v":{"$error":"#N/A"}}]
[null,"6 ay",null,null,{"$f":"IF(COUNT(Veri[[#This Row],[Kilo]:[Gram]])>0,Veri[[#This Row],[Kilo]]+(Veri[[#This Row],[Gram]]/16),NA())","v":{"$error":"#N/A"}}]
[null,"9 ay",null,null,{"$f":"IF(COUNT(Veri[[#This Row],[Kilo]:[Gram]])>0,Veri[[#This Row],[Kilo]]+(Veri[[#This Row],[Gram]]/16),NA())","v":{"$error":"#N/A"}}]
[null,"12 ay",null,null,{"$f":"IF(COUNT(Veri[[#This Row],[Kilo]:[Gram]])>0,Veri[[#This Row],[Kilo]]+(Veri[[#This Row],[Gram]]/16),NA())","v":{"$error":"#N/A"}}]
[null,"18 ay",null,null,{"$f":"IF(COUNT(Veri[[#This Row],[Kilo]:[Gram]])>0,Veri[[#This Row],[Kilo]]+(Veri[[#This Row],[Gram]]/16),NA())","v":{"$error":"#N/A"}}]
[null,"24 ay",null,null,{"$f":"IF(COUNT(Veri[[#This Row],[Kilo]:[Gram]])>0,Veri[[#This Row],[Kilo]]+(Veri[[#This Row],[Gram]]/16),NA())","v":{"$error":"#N/A"}}]
[null,"36 ay",null,null,{"$f":"IF(COUNT(Veri[[#This Row],[Kilo]:[Gram]])>0,Veri[[#This Row],[Kilo]]+(Veri[[#This Row],[Gram]]/16),NA())","v":{"$error":"#N/A"}}]

{"sheet":"BÜYÜME GRAFİĞİ","index":1,"n_rows":1,"n_cols":2,"rows_kept":1,"merged":[[0,1,1,1]]}
[null,"BEBEK BÜYÜME GRAFİĞİ"]